fUST/lending_fUST_20251001
["ID","MTS","AMOUNT","RATE_DAILY","PERIOD"]
[388615837,1759255840210,-159.07739539,0.000334,117]
[388615838,1759255840219,-202.05894053,0.000335,2]
[388615839,1759255840229,-1490.80375525,0.00034509,2]
[388615840,1759255840239,-156.30875522,0.00034509,2]
[388615841,1759255840249,-988.4272872,0.00034562,2]
[388615842,1759255840265,-502.37646805,0.00034562,2]
[388615843,1759255840274,-184.69845453,0.0003459,2]
[388615844,1759255840283,-2035.5,0.00034598,10]
[388615845,1759255840293,-1696.25,0.00034598,10]
[388615846,1759255840302,-184.6984545,0.00034598,2]
[388615847,1759255840311,-184.6984545,0.00034607,2]
[388615848,1759255840320,-243634.44247766,0.00034609,2]
[388615859,1759255843331,-349.43974685,0.00034609,2]
[388615860,1759255843488,-31110.95102147,0.00034609,2]
[388616043,1759255846313,-1413.54,0.00034598,10]
[388616044,1759255846323,-4938.78390313,0.00034609,2]
[388616045,1759255846366,-115684.70146478,0.00034609,2]
[388616046,1759255846378,-3053.1,0.00034609,2]
[388616067,1759256563551,6403.0,0.00034713,60]
[388616070,1759256907499,4037.14532776,0.00018,2]
[388616095,1759257035573,-269.17,0.00021903,2]
[388616096,1759257035582,-269.17,0.00022003,2]
[388616097,1759257035592,-840.749155,0.00026849,2]
[388616098,1759257035601,-950.000001,0.00031,120]
[388616099,1759257035610,-200.0,0.00031362,2]
[388616100,1759257035620,-249.066293,0.00032026,2]
[388616101,1759257035629,-840.749155,0.00032646,2]
[388616102,1759257035637,-400.0,0.00032699,2]
[388616103,1759257035647,-6810.31907845,0.000327,2]
[388616104,1759257035656,-12902.95284182,0.00033,2]
[388616105,1759257035667,-1098.1,0.00033,2]
[388616145,1759257038419,-154.25,0.00032174,15]
[388616146,1759257038428,-154.25,0.00032274,15]
[388616147,1759257038438,-36.65354498,0.00032374,15]
[388616148,1759257038472,-117.59645502,0.00032374,15]
[388616149,1759257038482,-517.81505463,0.00033,2]
[388616150,1759257038494,-1054.9139571,0.00033,2]
[388616151,1759257038504,-500.0,0.00033,2]
[388616152,1759257038529,-1296.07228172,0.00033,2]
[388616154,1759257038540,-8590.92618849,0.00033,2]
[388616155,1759257038551,-2073.71603117,0.00033,2]
[388616156,1759257038560,-74.15548418,0.000334,2]
[388616157,1759257038571,-82.15327104,0.000334,2]
[388616158,1759257038581,-1165.51318958,0.000335,2]
[388616160,1759257038590,-644.95116066,0.00033691,2]
[388616161,1759257038601,-184.6984545,0.00034514,2]
[388616162,1759257038610,-809.32,0.00034599,3]
[388616164,1759257038620,-6549.85099668,0.00034603,2]
[388616165,1759257038631,-500.4380789,0.00034603,2]
[388616166,1759257038645,-154.25,0.00032574,15]
[388616167,1759257038654,-1622.47311844,0.00034603,2]
[388616168,1759257038665,-1272.90675034,0.00034603,2]
[388616180,1759257040353,-154.25,0.00032674,15]
[388616182,1759257040362,-150.0114001,0.00032874,15]
[388616184,1759257040373,-4.2385999,0.00032874,15]
[388616186,1759257040382,-154.25,0.00032974,60]
[388616188,1759257040391,-154.25,0.00033074,60]
[388616190,1759257040399,-6942.46028902,0.00034603,2]
[388616192,1759257040410,-3313.53114223,0.00034603,2]
[388616194,1759257040421,-973.31406993,0.00034603,2]
[388616200,1759257040464,-507.34145989,0.00034603,2]
[388616529,1759257043660,-277.47905821,0.00024236,7]
[388616545,1759257043825,-318.68,0.00024236,7]
[388616664,1759257046609,-16.54302539,0.00024236,7]
[388616665,1759257046618,-154.25,0.00031974,15]
[388616666,1759257046628,-154.25,0.00032074,15]
[388616667,1759257046637,-154.25,0.00032474,15]
[388616668,1759257046646,-108.04697466,0.00032774,15]
[388616695,1759257730516,2466.28,0.00025,30]
[388616696,1759257730540,4000.0,0.00025,30]
[388616697,1759257730570,185253.11259572,0.00025,30]
[388616719,1759258232698,-600.0,0.00022795,2]
[388616732,1759258232801,-302.55137951,0.0002326,9]
[388616733,1759258232811,-600.0,0.00024165,2]
[388616734,1759258232819,-1014.203707,0.00024659,2]
[388616735,1759258232828,-212.0509792,0.00024775,2]
[388616736,1759258232837,-4447.5982431,0.00025205,2]
[388616737,1759258232845,-660.68916516,0.00025535,2]
[388616738,1759258232854,-1200.0,0.00025829,2]
[388616739,1759258232863,-1000.0,0.00025831,2]
[388616740,1759258232871,-195.589,0.00026364,2]
[388616741,1759258232880,-255.85192183,0.0002647,2]
[388616742,1759258232889,-601.4385359,0.0002647,2]
[388616743,1759258232898,-500.0,0.0002647,2]
[388616744,1759258232907,-500.0,0.0002647,2]
[388616745,1759258232917,-500.0,0.0002647,2]
[388616746,1759258232926,-500.0,0.0002647,2]
[388616747,1759258232935,-290.52398159,0.0002647,2]
[388616748,1759258232946,-209.47601841,0.0002647,2]
[388616749,1759258232955,-461.42604939,0.0002647,2]
[388616750,1759258232965,-38.57395061,0.0002647,2]
[388616751,1759258232974,-548.21833523,0.0002647,2]
[388616752,1759258232983,-406.60164925,0.00026471,2]
[388616826,1759258238651,-286.88483727,0.000231,2]
[388616827,1759258238662,-421.82732261,0.0002316,4]
[388616828,1759258238672,-63.09183738,0.0002647,2]
[388616829,1759258238683,-436.90816262,0.0002647,2]
[388616830,1759258238692,-500.0,0.0002647,2]
[388616831,1759258238702,-500.0,0.0002647,2]
[388616832,1759258238711,-75.76781627,0.0002647,2]
[388616833,1759258238722,-424.23218373,0.0002647,2]
[388616834,1759258238732,-500.0,0.0002647,2]
[388616835,1759258238743,-500.0,0.0002647,2]
[388616836,1759258238753,-500.0,0.0002647,2]
[388616837,1759258238762,-500.0,0.0002647,2]
[388616838,1759258238773,-500.0,0.0002647,2]
[388616839,1759258238783,-468.02062717,0.0002647,2]
[388616840,1759258238794,-2.89120846,0.0002647,2]
[388616842,1759258238804,-500.0,0.0002647,2]
[388616843,1759258238812,-422.33,0.0002647,2]
[388616844,1759258238821,-251.88472602,0.0002647,2]
[388616845,1759258238831,-512.95729402,0.0002647,2]
[388616846,1759258238840,-500.0,0.0002647,2]
[388616847,1759258238849,-1.25504604,0.0002647,2]
[388616848,1759258238860,-498.74495396,0.0002647,2]
[388616849,1759258238869,-191.76371262,0.0002647,2]
[388616850,1759258238880,-308.23628738,0.0002647,2]
[388616851,1759258238889,-500.0,0.0002647,2]
[388616852,1759258238898,-280.2391303,0.0002647,2]
[388616853,1759258238909,-9.89391074,0.0002647,2]
[388616854,1759258238918,-500.0,0.0002647,2]
[388616855,1759258238927,-500.0,0.0002647,2]
[388616856,1759258238936,-292.56621122,0.0002647,2]
[388616857,1759258238945,-500.0,0.0002647,2]
[388616858,1759258238956,-500.0,0.0002647,2]
[388616859,1759258238965,-500.0,0.0002647,2]
[388616860,1759258238974,-500.0,0.0002647,2]
[388616861,1759258238984,-500.0,0.0002647,2]
[388616862,1759258238993,-500.0,0.0002647,2]
[388616863,1759258239003,-500.0,0.0002647,2]
[388616864,1759258239012,-500.0,0.0002647,2]
[388616865,1759258239025,-500.0,0.0002647,2]
[388616866,1759258239035,-533.55646213,0.0002647,2]
[388616867,1759258239045,-500.0,0.0002647,2]
[388616868,1759258239056,-500.0,0.0002647,2]
[388616869,1759258239065,-339.94391364,0.0002647,2]
[388616870,1759258239075,-181.90489983,0.0002647,2]
[388616871,1759258239092,-318.09510017,0.0002647,2]
[388616872,1759258239101,-500.0,0.0002647,2]
[388616873,1759258239111,-500.0,0.0002647,2]
[388616874,1759258239120,-211.72178312,0.0002647,2]
[388616875,1759258239131,-146.0277062,0.0002647,2]
[388616876,1759258239141,-500.0,0.0002647,2]
[388616877,1759258239151,-500.0,0.0002647,2]
[388616878,1759258239160,-319.02662394,0.0002647,2]
[388617295,1759258243790,-180.97337606,0.0002647,2]
[388617297,1759258243800,-102.20382085,0.0002647,2]
[388617560,1759258246765,-397.79617915,0.0002647,2]
[388617563,1759258246775,-500.0,0.0002647,2]
[388617565,1759258246785,-500.0,0.0002647,2]
[388617567,1759258246794,-957.39582055,0.00026471,2]
[388618364,1759258505741,165.0,0.00018959,3]
[388618407,1759259437703,-736.12090922,0.00024403,2]
[388618408,1759259437715,-4537.82498968,0.00024403,2]
[388618409,1759259437724,-507.101853,0.00024422,2]
[388618410,1759259437734,-166.71,0.00025205,7]
[388618411,1759259437743,-414.27319138,0.00025205,2]
[388618412,1759259437752,-195.589,0.00025207,2]
[388618413,1759259437762,-321.51799559,0.00025373,2]
[388618414,1759259437771,-160.0,0.00025461,2]
[388618415,1759259437780,-421.00697513,0.00025464,2]
[388618416,1759259437789,-500.0,0.00025464,2]
[388618417,1759259437798,-179.09634528,0.00025464,2]
[388618418,1759259437807,-500.0,0.00025464,2]
[388618419,1759259437821,-305.76496956,0.00025464,2]
[388618420,1759259437831,-500.0,0.00025464,2]
[388618421,1759259437839,-204.43821263,0.00025464,2]
[388618422,1759259437848,-392.61738468,0.00025464,2]
[388618423,1759259437857,-168.106366,0.00025464,2]
[388618424,1759259437873,-500.0,0.00025464,2]
[388618425,1759259437888,-206.41660992,0.00025464,2]
[388618426,1759259437898,-500.0,0.00025464,2]
[388618427,1759259437907,-500.0,0.00025464,2]
[388618428,1759259437916,-500.0,0.00025464,2]
[388618429,1759259437926,-346.27686121,0.00025464,2]
[388618430,1759259437936,-500.0,0.00025464,2]
[388618431,1759259437945,-500.0,0.00025464,2]
[388618432,1759259437955,-300.0,0.00025464,2]
[388618433,1759259437964,-300.0,0.00025464,2]
[388618434,1759259437973,-300.0,0.00025464,2]
[388618435,1759259437982,-300.0,0.00025464,2]
[388618436,1759259437992,-1200.0,0.00025464,2]
[388618437,1759259438001,-300.0,0.00025464,2]
[388618438,1759259438011,-2870.77924594,0.00025465,2]
[388618439,1759259438028,-10746.55958675,0.00025465,2]
[388618456,1759259439710,-1980.8880079,0.00025465,2]
[388618459,1759259439724,-4772.98421967,0.00025465,2]
[388618461,1759259439737,-29174.25884968,0.00025465,2]
[388618463,1759259439747,-242.0,0.00025465,2]
[388618465,1759259439756,-200.0,0.00025466,10]
[388618467,1759259439765,-200.0,0.00025466,10]
[388618469,1759259439775,-200.0,0.00025466,10]
[388618471,1759259439784,-500.0,0.00025473,2]
[388618473,1759259439793,-1000.0,0.00026021,2]
[388618475,1759259439802,-160.0,0.00026455,2]
[388618478,1759259439812,-160.0,0.00026456,2]
[388618480,1759259439822,-966.46148311,0.00026466,7]
[388618482,1759259439831,-180.0433161,0.0002647,2]
[388618484,1759259439845,-256.2571523,0.0002647,2]
[388618486,1759259439854,-1375.9636113,0.0002647,2]
[388618488,1759259439864,-291.5149106,0.0002647,2]
[388618490,1759259439873,-321.51799559,0.00026697,2]
[388618492,1759259439886,-896.193548,0.00026849,2]
[388618494,1759259439896,-189.44378083,0.00027,3]
[388618496,1759259439906,-249.71486678,0.00027002,2]
[388618499,1759259439916,-590.17515113,0.00027002,2]
[388618501,1759259439926,-182.07,0.000274,2]
[388618503,1759259439936,-174.34321386,0.00027473,2]
[388618505,1759259439945,-420.0,0.00027573,2]
[388618507,1759259439955,-300.0,0.00027573,2]
[388618509,1759259439964,-420.0,0.00027573,2]
[388618511,1759259439973,-300.0,0.00027573,2]
[388618513,1759259439982,-300.0,0.00027573,2]
[388618515,1759259439991,-151.0,0.00027579,2]
[388618517,1759259440001,-198.0,0.00027579,2]
[388618519,1759259440010,-151.0,0.00027579,2]
[388618521,1759259440020,-151.0,0.00027579,2]
[388618523,1759259440029,-151.0,0.00027579,2]
[388618524,1759259440038,-151.0,0.00027579,2]
[388618525,1759259440048,-151.0,0.00027579,2]
[388618526,1759259440057,-151.0,0.00027579,2]
[388618527,1759259440067,-151.5785623,0.00027579,2]
[388618528,1759259440077,-151.0,0.00027579,2]
[388618529,1759259440086,-500.0,0.00027579,2]
[388618530,1759259440096,-500.0,0.00027579,2]
[388618531,1759259440105,-160.0,0.0002782,2]
[388618532,1759259440115,-151.0,0.00027853,2]
[388618533,1759259440125,-151.0,0.00027853,2]
[388618534,1759259440134,-151.0,0.00027853,2]
[388618535,1759259440260,-151.0,0.00027853,2]
[388618536,1759259440269,-98.72396981,0.00027853,2]
[388618537,1759259440285,-52.27603019,0.00027853,2]
[388618538,1759259440294,-151.0,0.00027853,2]
[388618539,1759259440303,-151.0,0.00027853,2]
[388618540,1759259440313,-151.0,0.00027853,2]
[388618541,1759259440323,-500.0,0.00027853,2]
[388618542,1759259440333,-500.0,0.00027853,2]
[388618543,1759259440342,-321.51799559,0.00028021,2]
[388618544,1759259440351,-997.86060767,0.00028102,2]
[388618545,1759259440360,-151.0,0.00028127,2]
[388618546,1759259440368,-199.00964174,0.00028127,2]
[388618547,1759259440378,-289.76310118,0.00028127,2]
[388618548,1759259440387,-151.0,0.00028127,2]
[388618549,1759259440395,-198.93549936,0.00028127,2]
[388618550,1759259440405,-500.0,0.00028127,2]
[388618551,1759259440414,-500.0,0.00028127,2]
[388618552,1759259440423,-260.0,0.00028368,2]
[388618553,1759259440433,-151.0,0.00028401,2]
[388618554,1759259440442,-151.0,0.00028401,2]
[388618555,1759259440450,-500.0,0.00028401,2]
[388618556,1759259440459,-500.0,0.00028401,2]
[388618557,1759259440469,-3591.70587748,0.00028416,7]
[388618558,1759259440478,-418.3012252,0.00028423,2]
[388618559,1759259440487,-200.33556194,0.00028675,2]
[388618560,1759259440496,-151.0,0.00028675,2]
[388618561,1759259440505,-500.0,0.00028675,2]
[388618562,1759259440514,-500.0,0.00028675,2]
[388618563,1759259440522,-500.0,0.0002881,5]
[388618564,1759259440531,-500.0,0.0002881,5]
[388618565,1759259440540,-360.0,0.00028916,2]
[388618566,1759259440549,-245.0,0.00028949,2]
[388618567,1759259440559,-491.13524214,0.00028949,2]
[388619100,1759260639974,-180.0,0.00021642,2]
[388619101,1759260639983,-300.0,0.00021642,2]
[388619102,1759260639993,-294.70488259,0.00021642,2]
[388619104,1759260640002,-500.0,0.00021642,2]
[388619106,1759260640011,-500.0,0.00021642,2]
[388619108,1759260640019,-500.0,0.00021642,2]
[388619111,1759260640030,-500.0,0.00021642,2]
[388619113,1759260640039,-500.0,0.00021642,2]
[388619115,1759260640048,-500.0,0.00021642,2]
[388619117,1759260640057,-500.0,0.00021642,2]
[388619119,1759260640066,-500.0,0.00021642,2]
[388619121,1759260640075,-542.39380285,0.00021642,2]
[388619122,1759260640084,-500.0,0.00021642,2]
[388619124,1759260640094,-500.0,0.00021642,2]
[388619127,1759260640103,-500.0,0.00021642,2]
[388619129,1759260640112,-500.0,0.00021642,2]
[388619131,1759260640122,-26314.0872628,0.00021643,2]
[388619152,1759260643258,-823.21999999,0.00021633,10]
[388619163,1759260646310,-1395.78000001,0.00021633,10]
[388619164,1759260646321,-919.10385673,0.00021643,2]
[388619189,1759261244160,432.92846398,0.0002011,13]
[388619263,1759261832343,-4378.85525017,0.0002012,2]
[388619265,1759261832352,-1200.0,0.00020407,2]
[388619267,1759261832361,-300.0,0.00020407,2]
[388619269,1759261832371,-300.0,0.00020407,2]
[388619271,1759261832381,-300.0,0.00020407,2]
[388619273,1759261832390,-1200.0,0.00020407,2]
[388619275,1759261832399,-14354.7715972,0.00020408,2]
[388619277,1759261832408,-616.513608,0.00020529,2]
[388619280,1759261832417,-160.0,0.00020987,2]
[388619283,1759261832426,-1503.37349669,0.0002099,2]
[388619286,1759261832435,-293.17,0.000213,2]
[388619289,1759261832443,-411.66468406,0.00021438,2]
[388619292,1759261832453,-967.94,0.00021529,10]
[388619294,1759261832463,-500.0,0.00021538,2]
[388619297,1759261832471,-500.0,0.00021538,2]
[388619300,1759261832480,-500.0,0.00021538,2]
[388619303,1759261832489,-500.0,0.00021538,2]
[388619305,1759261832498,-500.0,0.00021538,2]
[388619307,1759261832507,-500.0,0.00021538,2]
[388619309,1759261832517,-500.0,0.00021538,2]
[388619311,1759261832526,-500.0,0.00021538,2]
[388619313,1759261832535,-500.0,0.00021538,2]
[388619315,1759261832544,-500.0,0.00021538,2]
[388619317,1759261832553,-500.0,0.00021538,2]
[388619319,1759261832562,-500.0,0.00021538,2]
[388619321,1759261832571,-500.0,0.00021538,2]
[388619323,1759261832580,-500.0,0.00021538,2]
[388619325,1759261832589,-500.0,0.00021538,2]
[388619327,1759261832599,-500.0,0.00021538,2]
[388619330,1759261832608,-500.0,0.00021538,2]
[388619334,1759261832739,-500.0,0.00021538,2]
[388619336,1759261832748,-500.0,0.00021538,2]
[388619338,1759261832759,-264.48904361,0.00021538,2]
[388619340,1759261832768,-208.35711196,0.00021538,2]
[388619342,1759261832777,-500.0,0.00021538,2]
[388619344,1759261832788,-500.0,0.00021538,2]
[388619346,1759261832797,-500.0,0.00021538,2]
[388619348,1759261832806,-500.0,0.00021538,2]
[388619350,1759261832815,-500.0,0.00021538,2]
[388619352,1759261832824,-500.0,0.00021538,2]
[388619354,1759261832833,-500.0,0.00021538,2]
[388619356,1759261832843,-500.0,0.00021538,2]
[388619358,1759261832853,-500.0,0.00021538,2]
[388619360,1759261832862,-500.0,0.00021538,2]
[388619362,1759261832873,-500.0,0.00021538,2]
[388619364,1759261832883,-500.0,0.00021538,2]
[388619366,1759261832892,-500.0,0.00021538,2]
[388619368,1759261832901,-500.0,0.00021538,2]
[388619369,1759261832910,-500.0,0.00021538,2]
[388619371,1759261832919,-500.0,0.00021538,2]
[388619373,1759261832928,-500.0,0.00021538,2]
[388619375,1759261832937,-500.0,0.00021538,2]
[388619377,1759261832946,-500.0,0.00021538,2]
[388619378,1759261832955,-500.0,0.00021538,2]
[388619379,1759261832964,-500.0,0.00021538,2]
[388619380,1759261832974,-500.0,0.00021538,2]
[388619381,1759261832983,-500.0,0.00021538,2]
[388619382,1759261832992,-500.0,0.00021538,2]
[388619383,1759261833001,-500.0,0.00021538,2]
[388619384,1759261833010,-500.0,0.00021538,2]
[388619385,1759261833020,-206.20936299,0.00021538,2]
[388619386,1759261833029,-500.0,0.00021538,2]
[388619387,1759261833039,-500.0,0.00021538,2]
[388619388,1759261833048,-500.0,0.00021538,2]
[388619389,1759261833057,-300.92856799,0.00021538,2]
[388619390,1759261833067,-500.0,0.00021538,2]
[388619391,1759261833075,-500.0,0.00021538,2]
[388619392,1759261833085,-200.0,0.00021538,2]
[388619393,1759261833095,-45844.67935193,0.00021539,2]
[388619394,1759261833108,-4155.32064807,0.00021539,2]
[388619395,1759261833117,-151.0,0.00021541,2]
[388619396,1759261833126,-151.0,0.00021541,2]
[388619397,1759261833135,-151.0,0.00021541,2]
[388619398,1759261833144,-151.0,0.00021541,2]
[388619399,1759261833153,-151.0,0.00021541,2]
[388619400,1759261833163,-151.0,0.00021541,2]
[388619401,1759261833172,-151.0,0.00021541,2]
[388619402,1759261833181,-151.0,0.00021541,2]
[388619403,1759261833190,-151.0,0.00021541,2]
[388619404,1759261833199,-151.0,0.00021541,2]
[388619405,1759261833208,-153.630834,0.00021541,2]
[388619406,1759261833218,-3100.74930863,0.00021573,2]
[388619407,1759261833227,-597.69,0.00021633,3]
[388619408,1759261833236,-298.84,0.00021633,3]
[388619409,1759261833245,-896.55,0.00021633,3]
[388619410,1759261833255,-151.0,0.00021633,2]
[388619411,1759261833264,-151.0,0.00021633,2]
[388619412,1759261833273,-256653.33506716,0.00021643,2]
[388619438,1759261838147,-206.29341781,0.00021537,2]
[388619440,1759261838158,-217.22650038,0.00021537,2]
[388619442,1759261838168,-423.84556358,0.00021537,2]
[388619466,1759261840281,-76.15443642,0.00021537,2]
[388619467,1759261840291,-500.0,0.00021537,2]
[388619468,1759261840301,-500.0,0.00021537,2]
[388619469,1759261840310,-500.0,0.00021537,2]
[388619470,1759261840318,-500.0,0.00021537,2]
[388619471,1759261840327,-500.0,0.00021537,2]
[388619472,1759261840337,-500.0,0.00021537,2]
[388619473,1759261840346,-500.0,0.00021537,2]
[388619474,1759261840357,-200.19998716,0.00021537,2]
[388619475,1759261840366,-500.0,0.00021537,2]
[388619476,1759261840376,-500.0,0.00021537,2]
[388619477,1759261840385,-500.0,0.00021537,2]
[388619478,1759261840394,-500.0,0.00021537,2]
[388619479,1759261840403,-500.0,0.00021537,2]
[388619481,1759261840412,-46.09653948,0.00021537,2]
[388619494,1759261843375,-453.90346052,0.00021537,2]
[388619495,1759261843386,-1845.79,0.00021633,10]
[388619496,1759261843398,-27151.52799024,0.00021643,2]
[388619498,1759261843413,-592.49184814,0.00021643,2]
[388619500,1759261843428,-413.33,0.00021643,2]
[388619504,1759261843536,-375.84981648,0.00021643,2]
[388619510,1759261846372,-7426.39299063,0.00021643,2]
[388619528,1759262903840,23924.93,0.0003473,60]
[388619532,1759263023403,299.88046935,0.0001866,2]
[388619533,1759263025108,1198.32235551,0.0001866,2]
[388619538,1759263032461,-325.91596771,0.00019542,2]
[388619539,1759263032471,-227.92600688,0.00019642,2]
[388619540,1759263032480,-545.16964212,0.00020475,2]
[388619541,1759263032489,-2180.67856847,0.00020475,2]
[388619542,1759263032498,-4901.62025228,0.00020475,2]
[388619543,1759263032507,-360.20659857,0.00020574,2]
[388619544,1759263032517,-1100.0,0.00020584,2]
[388619545,1759263032526,-4075.4989519,0.00020585,2]
[388619546,1759263032535,-300.0,0.00020631,2]
[388619547,1759263032543,-300.0,0.00020631,2]
[388619548,1759263032553,-300.0,0.00020631,2]
[388619549,1759263032562,-300.0,0.00020631,2]
[388619550,1759263032571,-300.0,0.00020631,2]
[388619551,1759263032580,-308.256804,0.00020632,2]
[388619552,1759263032589,-1611.7083561,0.00020636,2]
[388619553,1759263032598,-500.0,0.00020674,2]
[388619554,1759263032607,-1200.0,0.00020674,2]
[388619555,1759263032617,-500.0,0.00020674,2]
[388619556,1759263032626,-500.0,0.00020674,2]
[388619557,1759263032637,-500.0,0.00020674,2]
[388619558,1759263032646,-500.0,0.00020674,2]
[388619559,1759263032655,-500.0,0.00020674,2]
[388619560,1759263032664,-500.0,0.00020674,2]
[388619561,1759263032673,-500.0,0.00020674,2]
[388619562,1759263032682,-500.0,0.00020674,2]
[388619563,1759263032691,-500.0,0.00020674,2]
[388619564,1759263032700,-500.0,0.00020674,2]
[388619565,1759263032710,-500.0,0.00020674,2]
[388619566,1759263032720,-179.3802619,0.00020674,2]
[388619567,1759263032729,-500.0,0.00020674,2]
[388619568,1759263032738,-500.0,0.00020674,2]
[388619569,1759263032748,-500.0,0.00020674,2]
[388619570,1759263032757,-500.0,0.00020674,2]
[388619571,1759263032767,-500.0,0.00020674,2]
[388619572,1759263032776,-500.0,0.00020674,2]
[388619573,1759263032785,-500.0,0.00020674,2]
[388619574,1759263032794,-500.0,0.00020674,2]
[388619575,1759263032804,-500.0,0.00020674,2]
[388619576,1759263032813,-500.0,0.00020674,2]
[388619577,1759263032822,-199.78123206,0.00020674,2]
[388619578,1759263032831,-500.0,0.00020674,2]
[388619579,1759263032840,-500.0,0.00020674,2]
[388619580,1759263032849,-500.0,0.00020674,2]
[388619581,1759263032859,-162.68210876,0.00020674,2]
[388619582,1759263032868,-500.0,0.00020674,2]
[388619583,1759263032876,-500.0,0.00020674,2]
[388619584,1759263032886,-500.0,0.00020674,2]
[388619585,1759263032896,-500.0,0.00020674,2]
[388619586,1759263032904,-500.0,0.00020674,2]
[388619587,1759263032913,-500.0,0.00020674,2]
[388619588,1759263032922,-500.0,0.00020674,2]
[388619589,1759263032932,-500.0,0.00020674,2]
[388619590,1759263032941,-500.0,0.00020674,2]
[388619591,1759263032950,-500.0,0.00020674,2]
[388619592,1759263032959,-500.0,0.00020674,2]
[388619593,1759263032967,-500.0,0.00020674,2]
[388619594,1759263032977,-500.0,0.00020674,2]
[388619595,1759263032986,-500.0,0.00020674,2]
[388619596,1759263032995,-500.0,0.00020674,2]
[388619597,1759263033006,-500.0,0.00020674,2]
[388619598,1759263033015,-500.0,0.00020674,2]
[388619599,1759263033024,-500.0,0.00020674,2]
[388619600,1759263033033,-220.20879323,0.00020674,2]
[388619601,1759263033042,-500.0,0.00020674,2]
[388619602,1759263033051,-500.0,0.00020674,2]
[388619603,1759263033060,-500.0,0.00020674,2]
[388619604,1759263033069,-500.0,0.00020674,2]
[388619605,1759263033078,-279.79448747,0.00020674,2]
[388619606,1759263033088,-500.0,0.00020674,2]
[388619607,1759263033101,-500.0,0.00020674,2]
[388619608,1759263033110,-500.0,0.00020674,2]
[388619609,1759263033120,-227.71411607,0.00020674,2]
[388619610,1759263033130,-500.0,0.00020674,2]
[388619611,1759263033140,-26030.88683592,0.00020675,2]
[388619612,1759263033149,-500.0,0.00020948,2]
[388619613,1759263033159,-690.59343277,0.00021551,2]
[388619614,1759263033167,-450.2076028,0.00021552,2]
[388619615,1759263033178,-1799.02958079,0.00021552,2]
[388619616,1759263033187,-217.74196432,0.00021623,2]
[388619617,1759263033196,-500.0,0.00021623,2]
[388619618,1759263033206,-500.0,0.00021623,2]
[388619619,1759263033216,-500.0,0.00021623,2]
[388619620,1759263033225,-577.33303697,0.00021623,2]
[388619621,1759263033235,-500.0,0.00021623,2]
[388619622,1759263033244,-500.0,0.00021623,2]
[388619623,1759263033254,-324.05332751,0.00021623,2]
[388619624,1759263033270,-175.94667249,0.00021623,2]
[388619625,1759263033279,-500.0,0.00021623,2]
[388619626,1759263033288,-5.06618622,0.00021623,2]
[388619627,1759263033387,-494.93381378,0.00021623,2]
[388619628,1759263033396,-500.0,0.00021623,2]
[388619629,1759263033405,-1250.6088914,0.00021625,2]
[388619630,1759263033414,-1442.9498341,0.00021625,2]
[388619631,1759263033423,-260.75936446,0.0002163,2]
[388619632,1759263033432,-1538.16,0.00021633,10]
[388619633,1759263033442,-531.11388943,0.00021643,2]
[388619634,1759263033451,-27322.53627033,0.00021643,2]
[388619635,1759263033463,-29365.22192216,0.00021643,2]
[388619638,1759263033496,-1000.0,0.00021643,2]
[388619711,1759263038301,-242.74,0.00020674,2]
[388619712,1759263038311,-242.74,0.00020948,2]